[Event "Austria 2nd BL-Mitte 2024-25"]
[Site "Austria"]
[Date "2025.04.05"]
[Round "10.9"]
[White "Wagner, Stephan"]
[Black "Ennsberger, Ulrich"]
[Result "0-1"]
[Annotator "ChessBase"]
[ECO "A36"]
[WhiteElo "2240"]
[BlackElo "2277"]
[PlyCount "144"]
[EventDate "2025.03.30"]
[EventType "team-tourn"]
[EventCountry "AUT"]
[SourceTitle "playchess.com"]
[Source "ChessBase"]
[SourceQuality "1"]
[TimeControl "40/5400+30:1800+30"]

1. c4 {[%emt 0:00:01]} c5 {[%emt 0:01:20]} 2. Nc3 {[%emt 0:00:12]} g6 {[%emt 0:00:34]} 3. g3 {[%emt 0:00:12]} Bg7 {[%emt 0:00:06]} 4. Bg2 {[%emt 0:00:05]} Nc6 {[%emt 0:00:11]} 5. e4 {[%emt 0:00:20]} d6 {[%emt 0:01:06]} 6. Nge2 {[%emt 0:00:08]} h5 {[%emt 0:04:39]} 7. h3 {[%emt 0:00:07]} Nf6 {[%emt 0:03:19]} 8. d3 {[%emt 0:00:43]} Bd7 {[%emt 0:00:45]} 9. Be3 {[%emt 0:05:14]} a6 {[%emt 0:01:34]} 10. a4 {[%emt 0:01:23]} Rb8 {[%emt 0:01:41]} 11. Rb1 {[%emt 0:00:34]} O-O {[%emt 0:03:50]} 12. O-O {[%emt 0:01:58]} Qc8 {[%emt 0:32:35]} 13. Kh2 {[%emt 0:02:39]} Ne5 {[%emt 0:00:15]} 14. Nf4 {[%emt 0:14:58]} b5 {[%emt 0:04:11]} 15. axb5 {[%emt 0:04:44]} axb5 {[%emt 0:01:13]} 16. cxb5 {[%emt 0:01:24]} Bxb5 {[%emt 0:00:36]} 17. Nxb5 {[%emt 0:02:39]} Rxb5 {[%emt 0:00:07]} 18. d4 {[%emt 0:18:49]} Nc4 {[%emt 0:07:04]} 19. b3 {[%emt 0:05:10]} Nxe3 {[%emt 0:03:15]} 20. fxe3 {[%emt 0:00:05]} Qb8 {[%emt 0:01:03]} 21. Qd3 {[%emt 0:05:57]} cxd4 {[%emt 0:03:12]} 22. exd4 {[%emt 0:00:14]} Qb6 {[%emt 0:00:06]} 23. b4 {[%emt 0:16:04]} e6 {[%emt 0:09:37]} 24. Qc4 {[%emt 0:05:05]} Kh7 {[%emt 0:01:17]} 25. d5 {[%emt 0:03:22]} exd5 {[%emt 0:00:53]} 26. Nxd5 {[%emt 0:01:00]} Nxd5 {[%emt 0:00:07]} 27. exd5 {[%emt 0:00:07]} Be5 {[%emt 0:00:37]} 28. Rf3 {[%emt 0:02:20]} Qb7 {[%emt 0:00:49]} 29. h4 {[%emt 0:02:42]} Kg7 {[%emt 0:00:52]} 30. Qc6 {[%emt 0:01:29]} Qb8 {[%emt 0:01:10]} 31. Qc4 {[%emt 0:03:25]} Rc8 {[%emt 0:02:07]} 32. Qb3 {[%emt 0:01:46]} Qb7 {[%emt 0:05:00]} 33. Re3 {[%emt 0:01:13]} Rb8 {[%emt 0:01:01]} 34. Re4 {[%emt 0:00:40]} Qxd5 {[%emt 0:02:39]} 35. Qxd5 {[%emt 0:00:13]} Rxd5 {[%emt 0:00:08]} 36. Re3 {[%emt 0:00:03]} Rd4 {[%emt 0:00:04]} 37. b5 {[%emt 0:01:21]} Rxh4+ {[%emt 0:00:39]} 38. Kg1 {[%emt 0:00:05]} Bd4 {[%emt 0:08:10]} 39. gxh4 {[%emt 0:00:03]} Bxe3+ {[%emt 0:00:06]} 40. Kh2 {[%emt 0:00:13]} Bd4 {[%emt 0:00:32]} 41. Bc6 {[%emt 0:31:07]} Kf6 {[%emt 0:02:59]} 42. Kh3 {[%emt 0:00:00]} Ke6 {[%emt 0:00:43]} 43. Rd1 {[%emt 0:00:00]} Be5 {[%emt 0:02:56]} 44. Rd2 {[%emt 0:00:00]} f6 {[%emt 0:07:24]} 45. Rg2 {[%emt 0:00:00]} Kf5 {[%emt 0:05:56]} 46. Rf2+ {[%emt 0:00:16]} Bf4 {[%emt 0:02:31]} 47. Re2 {[%emt 0:01:45]} g5 {[%emt 0:01:58]} 48. Re7 {[%emt 0:01:35]} g4+ {[%emt 0:00:59]} 49. Kg2 {[%emt 0:00:04]} Be5 {[%emt 0:00:10]} 50. Re8 {[%emt 0:00:34]} Rxe8 {[%emt 0:05:05]} 51. Bxe8 {[%emt 0:00:01]} d5 {[%emt 0:00:17]} 52. Bxh5 {[%emt 0:00:39]} d4 {[%emt 0:00:32]} 53. Bf7 {[%emt 0:00:35]} Kf4 {[%emt 0:00:57]} 54. Bb3 {[%emt 0:01:16]} d3 {[%emt 0:01:22]} 55. b6 {[%emt 0:00:45]} f5 {[%emt 0:00:29]} 56. b7 {[%emt 0:00:29]} Ke3 {[%emt 0:00:38]} 57. h5 {[%emt 0:01:07]} f4 {[%emt 0:00:05]} 58. Bd1 {[%emt 0:00:00]} f3+ {[%emt 0:00:07]} 59. Kf1 {[%emt 0:00:18]} g3 {[%emt 0:00:11]} 60. h6 {[%emt 0:00:11]} Bd4 {[%emt 0:01:22]} 61. b8=Q {[%emt 0:00:47]} g2+ {[%emt 0:00:12]} 62. Kg1 {[%emt 0:00:06]} Kd2+ {[%emt 0:00:15]} 63. Kh2 {[%emt 0:00:09]} g1=Q+ {[%emt 0:00:17]} 64. Kh3 {[%emt 0:00:04]} Qg2+ {[%emt 0:04:07]} 65. Kh4 {[%emt 0:00:06]} Kxd1 {[%emt 0:00:13]} 66. Qb1+ {[%emt 0:01:01]} Ke2 {[%emt 0:00:11]} 67. Qa2+ {[%emt 0:00:07]} d2 {[%emt 0:00:35]} 68. Qc4+ {[%emt 0:00:18]} Ke3 {[%emt 0:03:29]} 69. Qb3+ {[%emt 0:00:24]} Kf2 {[%emt 0:00:00]} 70. Qd3 {[%emt 0:00:26]} Be3 {[%emt 0:00:00]} 71. h7 {[%emt 0:00:17]} Qg5+ {[%emt 0:00:00]} 72. Kh3 {[%emt 0:00:06]} Qh5# {[%emt 0:02:00]} 0-1

[Event "Austria 2nd BL-Mitte 2024-25"]
[Site "Austria"]
[Date "2025.04.05"]
[Round "10.10"]
[White "Moser, Guenter"]
[Black "Manhardt, Thomas"]
[Result "1-0"]
[Annotator "ChessBase"]
[ECO "A04"]
[WhiteElo "2201"]
[BlackElo "2116"]
[PlyCount "77"]
[EventDate "2025.03.30"]
[EventType "team-tourn"]
[EventCountry "AUT"]
[SourceTitle "playchess.com"]
[Source "ChessBase"]
[SourceQuality "1"]
[TimeControl "40/5400+30:1800+30"]

1. d4 {[%emt 0:00:06]} Nf6 {[%emt 0:00:09]} 2. g3 {[%emt 0:00:23]} g6 {[%emt 0:00:24]} 3. Bg2 {[%emt 0:00:12]} Bg7 {[%emt 0:00:06]} 4. Nf3 {[%emt 0:00:33]} c5 {[%emt 0:01:55]} 5. c3 {[%emt 0:01:17]} cxd4 {[%emt 0:01:51]} 6. Nxd4 {[%emt 0:00:22]} Nc6 {[%emt 0:00:44]} 7. O-O {[%emt 0:00:42]} O-O {[%emt 0:00:16]} 8. e4 {[%emt 0:04:06]} d6 {[%emt 0:08:55]} 9. Nxc6 {[%emt 0:05:08]} bxc6 {[%emt 0:00:45]} 10. e5 {[%emt 0:00:31]} dxe5 {[%emt 0:06:58]} 11. Qxd8 {[%emt 0:02:18]} Rxd8 {[%emt 0:00:06]} 12. Bxc6 {[%emt 0:00:08]} Bh3 {[%emt 0:01:31]} 13. Re1 {[%emt 0:03:38]} Rac8 {[%emt 0:04:55]} 14. Bh1 {[%emt 0:04:04]} Rc7 {[%emt 0:08:28]} 15. Na3 {[%emt 0:11:47]} e4 {[%emt 0:18:02]} 16. Nb5 {[%emt 0:03:43]} Rb7 {[%emt 0:02:21]} 17. a4 {[%emt 0:07:59]} a6 {[%emt 0:03:22]} 18. Nd4 {[%emt 0:00:48]} h6 {[%emt 0:09:49]} 19. a5 {[%emt 0:05:43]} Rd6 {[%emt 0:06:57]} 20. Nc2 {[%emt 0:07:00]} Bf5 {[%emt 0:01:40]} 21. Nb4 {[%emt 0:07:59]} g5 {[%emt 0:06:43]} 22. f3 {[%emt 0:05:04]} Rb5 {[%emt 0:02:42]} 23. Be3 {[%emt 0:02:30]} exf3 {[%emt 0:01:08]} 24. Bxf3 {[%emt 0:00:12]} Bc8 {[%emt 0:04:54]} 25. Bb6 {[%emt 0:01:33]} Kf8 {[%emt 0:04:15]} 26. Rad1 {[%emt 0:02:51]} Rf5 {[%emt 0:01:18]} 27. Rxd6 {[%emt 0:03:13]} exd6 {[%emt 0:00:01]} 28. Bg2 {[%emt 0:03:16]} Nd7 {[%emt 0:02:09]} 29. Bc7 {[%emt 0:01:24]} Be5 {[%emt 0:01:15]} 30. Bh3 {[%emt 0:02:09]} Rf6 {[%emt 0:00:25]} 31. Nd5 {[%emt 0:03:20]} Rf3 {[%emt 0:00:24]} 32. Bg2 {[%emt 0:00:36]} g4 {[%emt 0:01:19]} 33. Bxf3 {[%emt 0:02:19]} gxf3 {[%emt 0:00:02]} 34. Nb6 {[%emt 0:00:12]} Nxb6 {[%emt 0:00:10]} 35. Bxb6 {[%emt 0:00:39]} Bb7 {[%emt 0:00:32]} 36. Kf2 {[%emt 0:00:29]} f5 {[%emt 0:00:20]} 37. Bd4 {[%emt 0:01:24]} Be4 {[%emt 0:00:27]} 38. Bxe5 {[%emt 0:01:24]} dxe5 {[%emt 0:00:01]} 39. g4 {[%emt 0:01:16]} 1-0

[Event "Austria 2nd BL-Mitte 2024-25"]
[Site "Austria"]
[Date "2025.04.05"]
[Round "10.11"]
[White "Sohn, Benedikt"]
[Black "Knoll, Hermann"]
[Result "1-0"]
[Annotator "ChessBase"]
[ECO "B56"]
[WhiteElo "2028"]
[BlackElo "2258"]
[PlyCount "75"]
[EventDate "2025.03.30"]
[EventType "team-tourn"]
[EventCountry "AUT"]
[SourceTitle "playchess.com"]
[Source "ChessBase"]
[SourceQuality "1"]
[TimeControl "40/5400+30:1800+30"]

1. e4 {[%emt 0:00:03]} c5 {[%emt 0:00:08]} 2. Nf3 {[%emt 0:00:04]} d6 {[%emt 0:00:04]} 3. d4 {[%emt 0:00:03]} cxd4 {[%emt 0:00:06]} 4. Nxd4 {[%emt 0:00:03]} Nf6 {[%emt 0:00:07]} 5. Nc3 {[%emt 0:00:03]} e5 {[%emt 0:00:08]} 6. Bb5+ {[%emt 0:00:02]} Nbd7 {[%emt 0:00:56]} 7. Nf5 {[%emt 0:00:16]} a6 {[%emt 0:00:06]} 8. Bxd7+ {[%emt 0:00:04]} Qxd7 {[%emt 0:00:06]} 9. Bg5 {[%emt 0:00:31]} Nxe4 {[%emt 0:00:08]} 10. Nxg7+ {[%emt 0:00:04]} Bxg7 {[%emt 0:00:08]} 11. Nxe4 {[%emt 0:00:05]} O-O {[%emt 0:00:54]} 12. Qxd6 {[%emt 0:00:52]} Qf5 {[%emt 0:00:07]} 13. f3 {[%emt 0:08:48]} Be6 {[%emt 0:08:31]} 14. O-O {[%emt 0:12:45]} Rac8 {[%emt 0:01:19]} 15. h4 {[%emt 0:15:38]} Qg6 {[%emt 0:09:17]} 16. Rf2 {[%emt 0:15:42]} h6 {[%emt 0:04:36]} 17. Be7 {[%emt 0:11:50]} Rfe8 {[%emt 0:00:50]} 18. Qb4 {[%emt 0:04:03]} Rc7 {[%emt 0:07:05]} 19. Bd6 {[%emt 0:02:57]} Rd7 {[%emt 0:00:15]} 20. Rd2 {[%emt 0:04:45]} Bf5 {[%emt 0:00:33]} 21. h5 {[%emt 0:01:03]} Qxh5 {[%emt 0:02:49]} 22. Nc5 {[%emt 0:00:11]} Rdd8 {[%emt 0:01:47]} 23. Nxb7 {[%emt 0:00:58]} Rc8 {[%emt 0:00:06]} 24. Nc5 {[%emt 0:00:42]} Qg6 {[%emt 0:00:36]} 25. Ne4 {[%emt 0:02:10]} Be6 {[%emt 0:00:49]} 26. Nc5 {[%emt 0:03:12]} Bf5 {[%emt 0:02:36]} 27. Ne4 {[%emt 0:00:09]} Kh7 {[%emt 0:07:33]} 28. Re1 {[%emt 0:00:57]} Bh8 {[%emt 0:00:56]} 29. c4 {[%emt 0:03:07]} Rg8 {[%emt 0:01:19]} 30. c5 {[%emt 0:00:55]} Be6 {[%emt 0:00:09]} 31. Nc3 {[%emt 0:03:07]} Qg3 {[%emt 0:02:44]} 32. Qe4+ {[%emt 0:01:53]} f5 {[%emt 0:00:38]} 33. Qe2 {[%emt 0:00:08]} Bc4 {[%emt 0:02:57]} 34. Qf2 {[%emt 0:02:38]} Qh3 {[%emt 0:01:42]} 35. Bxe5 {[%emt 0:02:38]} Bxe5 {[%emt 0:02:33]} 36. Rxe5 {[%emt 0:00:12]} Rxg2+ {[%emt 0:00:44]} 37. Qxg2 {[%emt 0:00:02]} Rg8 {[%emt 0:00:07]} 38. Re7+ {[%emt 0:00:32]} 1-0

[Event "Austria 2nd BL-Mitte 2024-25"]
[Site "Austria"]
[Date "2025.04.05"]
[Round "10.12"]
[White "Simon, Christopher"]
[Black "Hatzl, Johannes"]
[Result "0-1"]
[Annotator "NA"]
[ECO "D00"]
[WhiteElo "1968"]
[BlackElo "2079"]
[PlyCount "56"]
[EventDate "2025.03.30"]
[EventType "team-tourn"]
[EventCountry "AUT"]
[SourceTitle "playchess.com"]
[Source "ChessBase"]
[SourceQuality "1"]
[TimeControl "40/5400+30:1800+30"]

1. d4 {[%emt 0:00:06]} d5 {[%emt 0:00:16]} 2. Bf4 {[%emt 0:00:31]} c5 {[%emt 0:00:47]} 3. e3 {[%emt 0:00:54]} Nc6 {[%emt 0:00:54]} 4. c3 {[%emt 0:00:40]} Nf6 {[%emt 0:03:26]} 5. Bd3 {[%emt 0:02:06]} e6 {[%emt 0:02:43]} 6. Nd2 {[%emt 0:00:40]} Bd6 {[%emt 0:01:10]} 7. Bg3 {[%emt 0:00:57]} e5 {[%emt 0:09:55]} 8. dxe5 {[%emt 0:00:21]} Nxe5 {[%emt 0:00:33]} 9. Bc2 {[%emt 0:00:52]} O-O {[%emt 0:01:35]} 10. Ngf3 {[%emt 0:04:30]} Qe7 {[%emt 0:05:24]} 11. Nxe5 {[%emt 0:07:13]} Bxe5 {[%emt 0:00:04]} 12. O-O {[%emt 0:00:26]} Bxg3 {[%emt 0:03:32]} 13. hxg3 {[%emt 0:00:14]} Bg4 {[%emt 0:01:57]} 14. Qc1 {[%emt 0:03:27]} Rac8 {[%emt 0:05:10]} 15. c4 {[%emt 0:05:49]} dxc4 {[%emt 0:01:46]} 16. a4 {[%emt 0:05:38]} Be2 {[%emt 0:08:01]} 17. Re1 {[%emt 0:00:11]} Bd3 {[%emt 0:00:04]} 18. Bd1 {[%emt 0:00:32]} Qe6 {[%emt 0:08:26]} 19. Be2 {[%emt 0:04:01]} Nd5 {[%emt 0:06:19]} 20. Nxc4 {[%emt 0:01:25]} Nb4 {[%emt 0:00:36]} 21. Qc3 {[%emt 0:25:53]} Qxc4 {[%emt 0:01:04]} 22. Qxc4 {[%emt 0:02:12]} Bxc4 {[%emt 0:00:05]} 23. Bxc4 {[%emt 0:00:05]} Nc2 {[%emt 0:00:01]} 24. Rac1 {[%emt 0:00:09]} Nxe1 {[%emt 0:00:04]} 25. Rxe1 {[%emt 0:00:09]} Rcd8 {[%emt 0:04:29]} 26. Re2 {[%emt 0:00:55]} Rd1+ {[%emt 0:00:24]} 27. Kh2 {[%emt 0:00:07]} Rfd8 {[%emt 0:00:09]} 28. e4 {[%emt 0:01:16]} R1d2 {[%emt 0:01:50]} 0-1

[Event "Austria 2nd BL-Mitte 2024-25"]
[Site "Austria"]
[Date "2025.04.05"]
[Round "10.13"]
[White "Csonka, Balazs"]
[Black "Leisch, Lukas"]
[Result "1/2-1/2"]
[Annotator "RC"]
[ECO "D12"]
[WhiteElo "2459"]
[BlackElo "2407"]
[PlyCount "60"]
[EventDate "2025.03.30"]
[EventType "team-tourn"]
[EventCountry "AUT"]
[SourceTitle "playchess.com"]
[Source "ChessBase"]
[SourceQuality "1"]
[TimeControl "40/5400+30:1800+30"]

1. d4 {[%emt 0:00:30]} d5 {[%emt 0:00:30]} 2. c4 {[%emt 0:00:30]} c6 {[%emt 0:00:30]} 3. Nf3 {[%emt 0:00:30]} Nf6 {[%emt 0:00:30]} 4. e3 {[%emt 0:00:30]} Bf5 {[%emt 0:00:30]} 5. cxd5 {[%emt 0:00:30]} cxd5 {[%emt 0:00:30]} 6. Qb3 {[%emt 0:00:30]} Qc7 {[%emt 0:00:30]} 7. Bd2 {[%emt 0:00:30]} Nc6 {[%emt 0:00:30]} 8. Bb5 {[%emt 0:00:30]} e6 9. O-O {[%emt 0:00:00]} Bd6 {[%emt 0:08:26]} 10. Bb4 {[%emt 0:00:12]} O-O {[%emt 0:00:55]} 11. Bxd6 {[%emt 0:01:34]} Qxd6 {[%emt 0:00:09]} 12. Nbd2 {[%emt 0:00:15]} Rfc8 {[%emt 0:07:33]} 13. Rfc1 {[%emt 0:01:02]} Ne7 {[%emt 0:08:42]} 14. Bf1 {[%emt 0:06:24]} Rc7 {[%emt 0:05:47]} 15. Rxc7 {[%emt 0:29:39]} Qxc7 {[%emt 0:00:05]} 16. Qa3 {[%emt 0:00:08]} a5 {[%emt 0:12:42]} 17. Nb3 {[%emt 0:08:58]} b6 {[%emt 0:00:36]} 18. Rc1 {[%emt 0:00:50]} Qd8 {[%emt 0:00:47]} 19. Nbd2 {[%emt 0:10:55]} h6 {[%emt 0:02:29]} 20. Ne5 {[%emt 0:06:02]} Rc8 {[%emt 0:05:22]} 21. Rxc8 {[%emt 0:04:33]} Nxc8 {[%emt 0:00:52]} 22. Qc3 {[%emt 0:00:17]} Ne7 {[%emt 0:02:00]} 23. Nc6 {[%emt 0:04:20]} Nxc6 {[%emt 0:02:47]} 24. Qxc6 {[%emt 0:00:08]} Ne4 {[%emt 0:02:07]} 25. Nxe4 {[%emt 0:11:36]} Bxe4 {[%emt 0:00:10]} 26. a3 {[%emt 0:00:18]} Kf8 {[%emt 0:00:54]} 27. h3 {[%emt 0:01:31]} g5 {[%emt 0:05:01]} 28. Be2 {[%emt 0:03:47]} Bg6 {[%emt 0:00:39]} 29. Bf1 {[%emt 0:00:26]} Be4 {[%emt 0:00:22]} 30. Be2 {[%emt 0:00:04]} Bg6 {[%emt 0:00:05]} 1/2-1/2

[Event "Austria 2nd BL-Mitte 2024-25"]
[Site "Austria"]
[Date "2025.04.05"]
[Round "10.14"]
[White "Salvenmoser, Stefan"]
[Black "Gajek, Radoslaw"]
[Result "1/2-1/2"]
[Annotator "RC"]
[ECO "C55"]
[WhiteElo "2296"]
[BlackElo "2436"]
[PlyCount "80"]
[EventDate "2025.03.30"]
[EventType "team-tourn"]
[EventCountry "AUT"]
[SourceTitle "playchess.com"]
[Source "ChessBase"]
[SourceQuality "1"]
[TimeControl "40/5400+30:1800+30"]

1. e4 {[%emt 0:00:04]} e5 {[%emt 0:00:34]} 2. Nf3 {[%emt 0:00:27]} Nc6 {[%emt 0:00:29]} 3. Bc4 {[%emt 0:01:17]} Nf6 {[%emt 0:03:13]} 4. d3 {[%emt 0:00:39]} Be7 {[%emt 0:00:06]} 5. O-O {[%emt 0:03:11]} O-O {[%emt 0:00:19]} 6. a4 {[%emt 0:05:31]} d5 {[%emt 0:00:45]} 7. exd5 {[%emt 0:00:07]} Nxd5 {[%emt 0:00:08]} 8. a5 {[%emt 0:04:18]} Bg4 {[%emt 0:02:10]} 9. c3 {[%emt 0:00:29]} Qd6 {[%emt 0:05:02]} 10. Nbd2 {[%emt 1:19:27]} Rad8 {[%emt 0:02:25]} 11. h3 {[%emt 0:00:00]} Bh5 {[%emt 0:01:48]} 12. Ne4 {[%emt 0:00:00]} Qg6 {[%emt 0:07:35]} 13. Ng3 {[%emt 0:00:00]} Nf4 {[%emt 0:05:47]} 14. Bxf4 {[%emt 0:00:00]} exf4 {[%emt 0:00:21]} 15. Nxh5 {[%emt 0:00:00]} Qxh5 {[%emt 0:00:05]} 16. Re1 {[%emt 0:00:00]} Bd6 {[%emt 0:02:56]} 17. b4 {[%emt 0:00:00]} Kh8 {[%emt 0:03:10]} 18. b5 {[%emt 0:00:00]} Ne7 {[%emt 0:01:41]} 19. Ne5 {[%emt 0:00:00]} Qf5 {[%emt 0:01:33]} 20. d4 {[%emt 0:00:00]} Ng6 {[%emt 0:02:44]} 21. Nxg6+ {[%emt 0:00:00]} fxg6 {[%emt 0:00:29]} 22. Qf3 {[%emt 0:00:00]} b6 {[%emt 0:01:42]} 23. axb6 {[%emt 0:00:00]} axb6 {[%emt 0:00:08]} 24. Re2 {[%emt 0:00:00]} Rde8 {[%emt 0:03:45]} 25. Rxe8 {[%emt 0:00:00]} Rxe8 {[%emt 0:00:11]} 26. Ra8 {[%emt 0:00:00]} Qf8 {[%emt 0:01:50]} 27. Rxe8 {[%emt 0:00:00]} Qxe8 {[%emt 0:00:06]} 28. Qe2 {[%emt 0:00:00]} Qxe2 {[%emt 0:03:05]} 29. Bxe2 {[%emt 0:00:00]} Ba3 {[%emt 0:00:03]} 30. c4 {[%emt 0:00:00]} g5 {[%emt 0:00:27]} 31. g4 {[%emt 0:00:00]} Bb2 {[%emt 0:02:23]} 32. d5 {[%emt 0:00:00]} g6 {[%emt 0:00:27]} 33. Kg2 {[%emt 0:00:00]} Kg7 {[%emt 0:00:07]} 34. Kf3 {[%emt 0:00:00]} Bd4 {[%emt 0:00:19]} 35. Ke4 {[%emt 0:00:00]} Bxf2 {[%emt 0:00:32]} 36. d6 {[%emt 0:00:00]} cxd6 {[%emt 0:00:12]} 37. Kd5 {[%emt 0:00:00]} Bc5 {[%emt 0:01:06]} 38. Bf3 {[%emt 0:00:00]} Kf6 {[%emt 0:00:37]} 39. Be4 {[%emt 0:00:00]} Ke7 {[%emt 0:00:30]} 40. Bf3 {[%emt 0:00:00]} Kd7 {[%emt 0:01:52]} 1/2-1/2

[Event "Austria 2nd BL-Mitte 2024-25"]
[Site "Austria"]
[Date "2025.04.05"]
[Round "10.15"]
[White "Kristoferitsch, Daniel"]
[Black "Webersberger, Johann"]
[Result "1-0"]
[Annotator "ChessBase"]
[ECO "D27"]
[WhiteElo "2282"]
[BlackElo "2294"]
[PlyCount "69"]
[EventDate "2025.03.30"]
[EventType "team-tourn"]
[EventCountry "AUT"]
[SourceTitle "playchess.com"]
[Source "ChessBase"]
[SourceQuality "1"]
[TimeControl "40/5400+30:1800+30"]

1. d4 {[%emt 0:00:11]} d5 {[%emt 0:00:22]} 2. c4 {[%emt 0:00:05]} dxc4 {[%emt 0:00:20]} 3. Nf3 {[%emt 0:00:07]} Nf6 {[%emt 0:00:38]} 4. e3 {[%emt 0:00:06]} e6 {[%emt 0:02:15]} 5. Bxc4 {[%emt 0:00:06]} a6 {[%emt 0:00:08]} 6. O-O {[%emt 0:00:29]} c5 {[%emt 0:01:39]} 7. Bb3 {[%emt 0:00:06]} Nc6 {[%emt 0:02:26]} 8. Nc3 {[%emt 0:01:06]} Be7 {[%emt 0:00:49]} 9. dxc5 {[%emt 0:10:20]} Qxd1 {[%emt 0:02:25]} 10. Rxd1 {[%emt 0:00:09]} Bxc5 {[%emt 0:00:08]} 11. Bd2 {[%emt 0:01:32]} O-O {[%emt 0:12:04]} 12. Be1 {[%emt 0:08:36]} Ba7 {[%emt 0:24:07]} 13. Ng5 {[%emt 0:18:36]} e5 {[%emt 0:08:45]} 14. h3 {[%emt 0:07:28]} Bf5 {[%emt 0:06:31]} 15. Nd5 {[%emt 0:07:04]} h6 {[%emt 0:08:52]} 16. Nf3 {[%emt 0:02:20]} Be6 {[%emt 0:04:16]} 17. Nxf6+ {[%emt 0:23:08]} gxf6 {[%emt 0:00:03]} 18. Nd2 {[%emt 0:00:58]} Rac8 {[%emt 0:10:34]} 19. Ne4 {[%emt 0:01:18]} f5 {[%emt 0:01:52]} 20. Nf6+ {[%emt 0:01:30]} Kg7 {[%emt 0:02:13]} 21. Bxe6 {[%emt 0:00:23]} fxe6 {[%emt 0:00:06]} 22. Nd7 {[%emt 0:00:08]} Rfd8 {[%emt 0:04:41]} 23. Bc3 {[%emt 0:00:47]} Nd4 {[%emt 0:02:24]} 24. exd4 {[%emt 0:02:14]} Rxd7 {[%emt 0:00:05]} 25. dxe5 {[%emt 0:00:14]} Rcd8 {[%emt 0:00:03]} 26. Rd6 {[%emt 0:04:45]} Bc5 {[%emt 0:00:01]} 27. Rxe6 {[%emt 0:02:51]} Rd1+ {[%emt 0:00:06]} 28. Rxd1 {[%emt 0:00:04]} Rxd1+ {[%emt 0:00:02]} 29. Kh2 {[%emt 0:00:06]} Bxf2 {[%emt 0:00:09]} 30. Rf6 {[%emt 0:02:29]} Bg1+ {[%emt 0:03:48]} 31. Kg3 {[%emt 0:00:16]} Rf1 {[%emt 0:00:11]} 32. Kh4 {[%emt 0:04:49]} Be3 {[%emt 0:02:17]} 33. Rd6 {[%emt 0:01:08]} Rg1 {[%emt 0:00:58]} 34. e6+ {[%emt 0:00:55]} Kg6 {[%emt 0:00:32]} 35. e7+ {[%emt 0:00:07]} 1-0

[Event "Austria 2nd BL-Mitte 2024-25"]
[Site "Austria"]
[Date "2025.04.05"]
[Round "10.16"]
[White "Singer, Christoph"]
[Black "Dankhazi, Andras"]
[Result "1/2-1/2"]
[Annotator "ChessBase"]
[ECO "D35"]
[WhiteElo "2268"]
[BlackElo "2338"]
[PlyCount "86"]
[EventDate "2025.03.30"]
[EventType "team-tourn"]
[EventCountry "AUT"]
[SourceTitle "playchess.com"]
[Source "ChessBase"]
[SourceQuality "1"]
[TimeControl "40/5400+30:1800+30"]

1. d4 {[%emt 0:00:09]} Nf6 {[%emt 0:00:20]} 2. Nf3 {[%emt 0:00:06]} d5 {[%emt 0:00:26]} 3. c4 {[%emt 0:04:33]} e6 {[%emt 0:00:24]} 4. cxd5 {[%emt 0:02:37]} exd5 {[%emt 0:00:11]} 5. Nc3 {[%emt 0:03:55]} c6 {[%emt 0:01:25]} 6. Bf4 {[%emt 0:02:42]} Bf5 {[%emt 0:15:31]} 7. h3 {[%emt 0:10:28]} Bd6 {[%emt 0:16:03]} 8. Bxd6 {[%emt 0:00:40]} Qxd6 {[%emt 0:00:16]} 9. e3 {[%emt 0:00:05]} Nbd7 {[%emt 0:01:46]} 10. Bd3 {[%emt 0:00:25]} Bxd3 {[%emt 0:00:27]} 11. Qxd3 {[%emt 0:00:03]} O-O {[%emt 0:00:43]} 12. O-O {[%emt 0:00:05]} a5 {[%emt 0:07:12]} 13. Qc2 {[%emt 0:05:42]} Rfe8 {[%emt 0:06:49]} 14. Rac1 {[%emt 0:07:08]} Qe7 {[%emt 0:08:17]} 15. Rfd1 {[%emt 0:12:40]} Ne4 {[%emt 0:12:16]} 16. Nxe4 {[%emt 0:00:12]} Qxe4 {[%emt 0:26:24]} 17. Qxe4 {[%emt 0:02:25]} Rxe4 {[%emt 0:00:30]} 18. Ne1 {[%emt 0:45:35]} Nb6 {[%emt 0:00:00]} 19. Nd3 {[%emt 0:00:00]} Nc4 {[%emt 0:00:00]} 20. b3 {[%emt 0:00:00]} Nd6 {[%emt 0:00:00]} 21. Rc2 {[%emt 0:00:00]} f6 {[%emt 0:00:00]} 22. Nc5 {[%emt 0:00:00]} Re7 {[%emt 0:00:00]} 23. h4 {[%emt 0:00:00]} Kf7 {[%emt 0:00:00]} 24. g3 {[%emt 0:00:00]} Ne4 {[%emt 0:03:30]} 25. Nxe4 {[%emt 0:00:00]} Rxe4 {[%emt 0:00:00]} 26. a3 {[%emt 0:00:00]} Ke7 {[%emt 0:00:00]} 27. Kf1 {[%emt 0:00:00]} Kd6 {[%emt 0:00:00]} 28. Ke2 {[%emt 0:00:00]} h5 {[%emt 0:00:00]} 29. Kd3 {[%emt 0:00:00]} Re7 {[%emt 0:00:00]} 30. Rdc1 {[%emt 0:00:00]} Rc7 {[%emt 0:00:00]} 31. f3 {[%emt 0:00:00]} f5 {[%emt 0:00:20]} 32. Rg1 {[%emt 0:00:00]} Re7 {[%emt 0:00:24]} 33. g4 {[%emt 0:00:00]} Rae8 {[%emt 0:02:04]} 34. Re2 {[%emt 0:00:00]} hxg4 {[%emt 0:01:19]} 35. fxg4 {[%emt 0:00:00]} f4 {[%emt 0:00:31]} 36. Rge1 {[%emt 0:00:00]} f3 {[%emt 0:00:11]} 37. Rf2 {[%emt 0:00:00]} Re4 {[%emt 0:00:06]} 38. Rxf3 {[%emt 0:00:00]} Rxg4 {[%emt 0:00:17]} 39. Rh1 {[%emt 0:00:00]} Ke6 {[%emt 0:01:45]} 40. h5 {[%emt 0:09:25]} Rh8 {[%emt 0:00:13]} 41. Rfh3 {[%emt 0:12:07]} Rh6 {[%emt 0:06:33]} 42. b4 {[%emt 0:03:33]} a4 {[%emt 0:03:29]} 43. b5 {[%emt 0:17:25]} Rh8 {[%emt 0:22:18]} 1/2-1/2